Cogmind - Beta 12 @@@ ROGUE MODE // 2023.03.29 @ 16:20:52 Player: Exp. Geonium Core Result: Destroyed by D-53 Grenadier with Mini Grenade Launcher Performance ------------- Evolutions (0) 0 Regions Visited (2) 400 Robots Destroyed (15) 75 Value Destroyed (321) 321 Prototype IDs (0) 0 Alien Tech Used (0) 0 Bonus (0) 0 TOTAL SCORE: 796 Bonus ------- None Cogmind --------- Core Integrity 0/250 Matter 300/300 Energy 125/125 System Corruption 0% Temperature Cool (0) Movement Treading (160) Location -10/Mines Parts ------- > --- POWER (1) -------- Light Ion Engine > --- PROPULSION (2) --- Light Treads Light Treads > --- UTILITY (2) ------ Heat Sink Large Storage Unit > --- WEAPON (2) ------- Medium Laser Small Laser > --- INVENTORY (15) --- Aluminum Leg Aluminum Leg Wheel Wheel Sensor Array Sensor Array Sensor Array Light Armor Plating Medium Laser Light Assault Rifle Light Assault Rifle Grenade Launcher Rocket Launcher Datajack Mining Laser Peak State ------------ > --- POWER ------------ Ion Engine > --- PROPULSION ------- Aluminum Leg Aluminum Leg > --- UTILITY ---------- Large Storage Unit Light Armor Plating > --- WEAPON ----------- Assault Rifle Assault Rifle > --- INVENTORY -------- Light Ion Engine Light Treads Light Treads Wheel Wheel Sensor Array Sensor Array Sensor Array Light Armor Plating Medium Laser [Rating: 8] Favorites ----------- Power Ion Engine Engine Ion Engine Propulsion Light Treads Treads Light Treads Leg Aluminum Leg Utility Large Storage Unit Device Heat Sink Storage Large Storage Unit Protection Power Shielding Weapon Medium Laser Energy Gun Medium Laser Ballistic Gun Assault Rifle Build | -11 -10 -10 ------- Run | Jun Mat Min Slots Evolved . | . . . Power . | . . . Propulsion . | . . . Utility . | . . . Weapon . | . . . Parts Attached 11 | . 9 2 Power 2 | . 1 1 Engine 2 | . 1 1 Core . | . . . Reactor . | . . . Propulsion 2 | . 2 . Treads 2 | . 2 . Leg . | . . . Wheel . | . . . Hover . | . . . Flight . | . . . Utility 4 | . 3 1 Device 1 | . . 1 Storage 1 | . 1 . Processor . | . . . Hackware . | . . . Protection 2 | . 2 . Artifact . | . . . Weapon 3 | . 3 . Energy Gun 2 | . 2 . Energy Cannon . | . . . Ballistic Gun 1 | . 1 . Ballistic Cannon . | . . . Launcher . | . . . Special Weapon . | . . . Impact Weapon . | . . . Slashing Weapon . | . . . Piercing Weapon . | . . . Special Melee Weapon . | . . . Unidentified Prototypes . | . . . Parts Lost 4 | . 4 . Power 1 | . 1 . Propulsion . | . . . Utility 1 | . 1 . Weapon 2 | . 2 . Highest Loss Streak 4 | . 4 . To Critical Strikes . | . . . Average Slot Usage (%) 86 | . 82 97 Engine 6 | . 4 11 Treads 20 | . 17 28 Leg 7 | . 10 . Device 2 | . . 11 Storage 14 | . 14 14 Protection 10 | . 12 2 Energy Gun 16 | . 12 28 Ballistic Gun 6 | . 9 . Naked Turns . | . . . Heaviest Build 32 | 14 32 27 Greatest Support 40 | 20 40 40 Greatest Overweight (x) 2 | . 2 . Average Overweight (x) . | . . . Largest Inventory Capacity 15 | . 15 15 Average Capacity 14 | . 14 15 Most Carried 15 | . 15 15 Average Carried 11 | . 10 14 Final Capacity 15 | 8 15 15 Final Carried 15 | 6 15 15 Class Distribution -------------------- 100% | Mutant Dominant Class ---------------- Mutant | -10/Materials Mutant | -10/Mines Resources | -11 -10 -10 ----------- Run | Jun Mat Min Matter Collected 375 | 200 155 20 Remotely . | . . . Salvage Created 486 | . 395 91 Parts 27 | . 23 4 Haulers Intercepted . | . . . Recyclers Shooed 1 | . 1 . Parts Field Recycled . | . . . Retrieved Matter . | . . . Parts Self-Destructed . | . . . Prevented . | . . . Kills | -11 -10 -10 ------- Run | Jun Mat Min Combat Hostiles Destroyed 9 | . 7 2 Guns 8 | . 6 2 AOE 1 | . 1 . Classes Destroyed 6 | . 6 . Worker 3 | . 3 . Recycler 1 | . 1 . Operator 1 | . 1 . Watcher 1 | . 1 . Swarmer 3 | . 3 . Grunt 6 | . 4 2 Best Kill Streak 7 | . 7 2 Combat Bots Only 3 | . 3 2 Max Kills in Single Turn 2 | . 2 1 Gunslinging . | . . . Exploded 1 | . 1 . Melee . | . . . Uniques/NPCs Destroyed . | . . . Combat | -11 -10 -10 -------- Run | Jun Mat Min Damage Taken 1124 | . 715 409 Core 250 | . 126 124 Absorbed by Shields . | . . . Core Remaining (%) 100 | 100 . . Volleys Fired 51 | . 42 9 Largest 2 | . 2 2 Hottest 90 | . 90 90 Shots Fired 90 | . 72 18 Gun 90 | . 72 18 Cannon . | . . . Launcher . | . . . Special . | . . . Kinetic 33 | . 33 . Thermal 57 | . 39 18 Explosive . | . . . Electromagnetic . | . . . Robot Hit Streak 9 | . 8 9 Robot Miss Streak 3 | . 3 1 Penetration Max . | . . . Secondary Targets 1 | . . 1 Max Gunslinging Chain 1 | . . 1 Shots Hit Robots 59 | . 42 17 Core Hits 30 | . 24 6 Critical Kills . | . . . Critical Parts Destroyed . | . . . Critical Strikes 2 | . 2 . Burn 2 | . 2 . Melee Attacks . | . . . Impact . | . . . Slashing . | . . . Piercing . | . . . Sneak Attacks . | . . . Combat Hostiles . | . . . Follow-up Attacks . | . . . Damage Inflicted 918 | . 719 199 Guns 712 | . 513 199 Cannons . | . . . Explosions 193 | . 193 . Melee . | . . . Ramming 13 | . 13 . Kinetic 258 | . 258 . Thermal 454 | . 255 199 Explosive . | . . . Electromagnetic 193 | . 193 . Impact . | . . . Slashing . | . . . Piercing . | . . . Highest Corruption . | . . . Average Corruption . | . . . Corruption Purged . | . . . Corruption Blocked . | . . . Overload Shots . | . . . Overflow Damage . | . . . Projectiles . | . . . Explosions . | . . . Melee . | . . . Knockbacks . | . . . Impact . | . . . Kinetic . | . . . Secondary . | . . . Self-Inflicted Damage 35 | . 35 . Shots 1 | . 1 . Rammed 3 | . 3 . Targets Rammed 8 | . 8 . Kicked 5 | . 5 . Crushed . | . . . Highest Temperature 320 | . 320 150 Average Temperature 82 | . 84 77 Received Heat Transfer 432 | . 363 69 Siege Activations . | . . . Robots Corrupted . | . . . Combat Hostiles . | . . . Parts Fried 1 | . 1 . Impact Corruptions . | . . . Robots Melted . | . . . Combat Hostiles . | . . . Parts Melted 4 | . 4 . Heat Transferred 1398 | . 877 521 Parts Sabotaged . | . . . Parts Stolen . | . . . Parts Stripped . | . . . Power Chain Reactions 1 | . 1 . Missiles Intercepted . | . . . Alert | -11 -10 -10 ------- Run | Jun Mat Min Peak Influence 184 | . 184 51 Initial 1 | . . 1 Average 42 | . 40 45 Maximum Alert Level . | . . . Low Security (%) 100 | . 100 100 Level 1 . | . . . Level 2 . | . . . Level 3 . | . . . Level 4 . | . . . Level 5 . | . . . High Security . | . . . Max Security . | . . . Squads Dispatched 2 | . 2 . Investigation 1 | . 1 . Extermination . | . . . Reinforcement 1 | . 1 . Assault . | . . . Garrison . | . . . Intercept . | . . . Searches Triggered . | . . . Construction Impeded . | . . . Haulers Reinforced . | . . . Active Scanning Responses . | . . . Cargo Convoy Interrupts . | . . . Stealth | -11 -10 -10 --------- Run | Jun Mat Min Distress Signals 1 | . 1 . Communications Jammed . | . . . Distress Signals . | . . . Times Spotted 19 | . 15 4 Peak Tracking Total 5 | . 5 2 Tactical Retreats 2 | . 2 . Traps | -11 -10 -10 ------- Run | Jun Mat Min Traps Triggered 2 | . 2 . Indirectly . | . . . Trap Hack Attempts . | . . . Triggered . | . . . Disarmed . | . . . Reprogrammed . | . . . Reused . | . . . Traps Extracted . | . . . Installed . | . . . Triggered . | . . . Machines | -11 -10 -10 ---------- Run | Jun Mat Min Machines Disabled 2 | . 2 . Max in Single Turn 1 | . 1 . Machines Repaired . | . . . Machines Sabotaged . | . . . Overloaded Fab Kills . | . . . Hacking | -11 -10 -10 --------- Run | Jun Mat Min Machines Accessed 2 | . 2 . Terminals 2 | . 2 . Fabricators . | . . . Repair Stations . | . . . Recycling Units . | . . . Scanalyzers . | . . . Garrison Access . | . . . Total Hacks 7 | . 7 . Successful 4 | . 4 . Failed 3 | . 3 . Catastrophic 2 | . 2 . Database Lockouts . | . . . Manual 5 | . 5 . Terminals 7 | . 7 . Fabricators . | . . . Repair Stations . | . . . Recycling Units . | . . . Scanalyzers . | . . . Garrison Access . | . . . Terminal Hacks 4 | . 4 . Part Schematic 1 | . 1 . Robot Schematic 1 | . 1 . Branch Access Points 1 | . 1 . Hauler Manifests 1 | . 1 . Fabricator Hacks . | . . . Repair Station Hacks . | . . . Recycling Unit Hacks . | . . . Scanalyzer . | . . . Garrison Access Hacks . | . . . Unauthorized Hacks . | . . . Terminals . | . . . Fabricators . | . . . Repair Stations . | . . . Recycling Units . | . . . Scanalyzers . | . . . Garrison Access . | . . . Data Cores Recovered . | . . . Used . | . . . Hacking Detections 1 | . 1 . Full Trace Events . | . . . Feedback Events . | . . . Feedback Blocked . | . . . Robot Schematics Acquired 1 | . 1 . Robots Built . | . . . Authchips . | . . . Time . | . . . Total Robot Build Rating . | . . . Part Schematics Acquired 1 | . 1 . Parts Built . | . . . Authchips . | . . . Time . | . . . Total Part Build Rating . | . . . Parts Repaired . | . . . Time . | . . . Parts Recycled . | . . . Recycled Matter . | . . . Retrieved Matter . | . . . Retrieved Components . | . . . Parts Scanalyzed . | . . . Part Schematics Acquired . | . . . Parts Damaged . | . . . Bothacking | -11 -10 -10 ------------ Run | Jun Mat Min Used RIF Installer . | . . . Robots Hacked . | . . . Non-combat . | . . . Combat . | . . . Robot Hacks Applied . | . . . Relay Couplers Released . | . . . Fabnet Peak Effective % . | . . . Robots Rewired . | . . . Allies Hacked . | . . . Hacks Repelled . | . . . Allies | -11 -10 -10 -------- Run | Jun Mat Min Total Allies . | . . . Largest Group . | . . . Highest-Rated Group . | . . . Highest-Rated Ally . | . . . Total Orders . | . . . Ally Attacks . | . . . Total Damage . | . . . Kills . | . . . Allies Corrupted . | . . . Allies Melted . | . . . Intel | -11 -10 -10 ------- Run | Jun Mat Min Robot Analysis Total . | . . . Derelict Logs Recovered 2 | . . 2 Drone Launches . | . . . Drone Recoveries . | . . . Exploration | -11 -10 -10 ------------- Run | Jun Mat Min Turns Passed 1247 | . 936 311 Spaces Moved 629 | 1 462 166 Core . | . . . Treads 470 | . 304 166 Legs 159 | 1 158 . Wheels . | . . . Hover . | . . . Flight . | . . . Fastest Speed 120 | 120 120 160 Average Speed 165 | 120 168 160 Slowest Speed 260 | 120 260 160 Overloaded Moves . | . . . Propulsion Burnouts . | . . . Robots Hopped . | . . . Cave-ins Triggered . | . . . Exploration Rate (%) 29 | 2 48 39 Regions Visited 2 Branch Regions 1 Pre-discovered Areas 2 | . . 2 Known Exits Taken 1 | . 1 . Unknown Exits Taken 1 | 1 . . Scrap Searched 1 | . . 1 Spaces Dug . | . . . Terrain Destroyed 3 | . 3 . Melee . | . . . Projectile . | . . . AOE 3 | . 3 . Terrain Rammed . | . . . Walls Destroyed . | . . . Machines Disabled . | . . . Actions | -11 -10 -10 --------- Run | Jun Mat Min Total 738 | . 540 198 Wait 19 | . 8 11 Move 627 | . 461 166 Hop . | . . . Pick Up 16 | . 11 5 Fast Attach 5 | . 4 1 Attach 3 | . 2 1 Detach . | . . . Swap 3 | . 3 . Drop 6 | . 1 5 Fire 51 | . 42 9 Melee . | . . . Ram . | . . . Kick 5 | . 5 . Crush 3 | . 3 . Escape Stasis . | . . . Rewire . | . . . Trap . | . . . Miscellaneous . | . . . Route ------- -11/Junkyard -10/Materials (discovered 3 exits: [*Mat] / *Min x2) -10/Mines (discovered 1 exit: [*Mat]) History --------- Turn | Location | Event 1 | -11/Junkyard | Discovered new exit (range 0) 1 | -11/Junkyard | Entered Materials 322 | -10/Materials | Build established: Mutant 366 | -10/Materials | Lost 4 parts (1p1u2w) 423 | -10/Materials | Discovered new exit (range 12) 449 | -10/Materials | Identified exit to Mines 717 | -10/Materials | Core integrity fell below 50% 937 | -10/Materials | Entered Mines 1072 | -10/Mines | Received a Rocket Launcher from a helpful Derelict 1123 | -10/Mines | Learned location of Zion (-7) 1161 | -10/Mines | Discovered new exit (range 5) 1230 | -10/Mines | Assembled infested the area 1247 | -10/Mines | Core integrity fell below 20% 1248 | -10/Mines | Destroyed by D-53 Grenadier with Mini Grenade Launcher Last Messages --------------- 01134_ K-01 Serf collects debris. 01138_ Acquired derelict log, extracted data. World map updated: -8/Materials. 01138_ K-01 Serf collects debris. 01154_ Searching scrap... 01154_ Found Grenade Launcher. 01154_ Found Mining Laser. 01154_ Found Tractor Beam. 01154_ Found 15 Matter. 01157_ Dropped Aluminum Leg. 01157_ Acquired Grenade Launcher. 01161_ EXIT=FOUND 01218_ K-01 Serf collects debris. 01225_ R-06 Scavenger collects Aluminum Leg. 01226_ K-01 Serf collects debris. 01230_ ALERT: Infestation in the mines, dispatching Demolisher response squad. 01242_ C-30 ARC bursts open, deploying its payload. 01242_ D-53 Grenadier unfolds itself. 01243_ T-07 Excavator destroyed. Map ----- +----------------------------------------------------+ | ??????????????????????????????????? ##?? | | ???????????????????????????????????# ##? | | ????????????????????????????????????# ## | | ????????????????????????????????????# """ | | ???????????????????????????????????## """ | | ??????????????????????????????????## """ # | | ??????????????????????????????????# ## | | ??????????????????????????????????# ######? | | ??????????????????????????????????# ##????? | | ??????????????????????????????????## #????? | | ??????????????????????????????????## #????? | | ??????????????????????????????????# ##???? | | ??????????????????????????????????# ##??? | | ??????????????????????????????????# #??? | | ??????????????????????????????????## #??? | | ???????????????????????????????????## ##??? | | ????????????????????????????????????## #####???? | | ?????????????????????????####????????## #???????? | | ????????????????????????## ###???????# #???????? | | ???????????????????????## ##??????# ########? | | ??????????????????????## #??????# ## | | ?????????????????????## ! ######## # | | ????????????????????## r # | | ??????????########### u ## | | ?????? $ #### ###### | | ?????? @d #??# #????## | | ?????????############ d ##?# #????## ## | | ????????????????????# #?# #??### ##? | | ????????????????????## #?# #### #?? | | ?????????????????????## ### #?? | | ??????????????????????##### ## #?? | | ??????????????????????????### | ####### ##?? | | ????????????????????????????####%!#?????#### ##?? | | ??????????????????????????###### #????????## #?? | | ??????????????????????????# = #?????????# #?? | | ?????????????????##???????# #?????????# ### | | ?????????????????# ##++#### ######?????????# # | | ??????????????????# ## #####??????????## | | ??????????????????# ## # ##?????????# # | | ??????????????????# < #?????????###### | | ??????????????????## #??????????????? | | ???????????????????#### ## ##??????????????? | | ??????????????????????############???????????????? | | ?????????????????????????????????????????????????? | | ?????????????????????????????????????????????????? | | | | | | | | | | | +----------------------------------------------------+ Best States ------------- Heat Dissipation 35 Energy Generation 10 Energy Capacity 250 Matter Stores 300 Matter Capacity 300 Sight Range 16 Terrain Scan Density 10 Armor Coverage 150 Power Shielding 33 Evasion (%) 55 Recoil Reduction 2 Item Schematics ----------------- Hcp. Storage Unit | -10/Materials | Hacked Robot Schematics ------------------ S-10 Pest | -10/Materials | Hacked Fabricated ------------ Nothing Alien Tech Used ----------------- None Achievements -------------- None Challenges ------------ None Game ------ Seed AlloyDeepSteel Manual? 0 Play Time 00:08:00 Cumulative 352.3 hours Start 2023.03.29 @ 16:12:50 End 2023.03.29 @ 16:20:52 Sessions 1 Manual Loads 0 Difficulty Rogue Special Mode None Game No. 402 Rogue 402 Adventurer 0 Explorer 0 Win Type - Total 11 Types 8/0/2/1/0/0/0/0/0 Lore% 80 Gallery% 89 Achievement% 78 Wizard Run 0 Options --------- ASCII 0 Keyboard 0 Movement Numpad Keybinds 0 Fullscreen 1 Font 18/Terminus Map View 76x50 Tactical HUD 1 Map Filters NONE Filters NONE Steam 1 RUN: a90e72d7-d680-423f-91ba-cf7b8729f8ad